Workbook

Sheet spectra of Plexi
A1: Emission [nm] | B1: yellow 405 ex | C1: yellow 440 ex | D1: yellow 488 ex | E1: yellow 514 ex | F1: green 405 | G1: green 440 | H1: green 488 | I1: green 514
A2: 432 | B2: 0.1 | C2: 0 | D2: 0 | E2: 0 | F2: 0.2 | G2: 0 | H2: 0 | I2: 0
A3: 441 | B3: 0.3 | C3: 0 | D3: 0 | E3: 0 | F3: 0.5 | G3: 0 | H3: 0 | I3: 0
A4: 450 | B4: 2.5 | C4: 0.1 | D4: 0.1 | E4: 0 | F4: 3.9 | G4: 0.1 | H4: 0.1 | I4: 0
A5: 459 | B5: 13.4 | C5: 2.7 | D5: 0.7 | E5: 0 | F5: 19.9 | G5: 3 | H5: 0.7 | I5: 0.1
A6: 467 | B6: 47.6 | C6: 31.8 | D6: 4.9 | E6: 0.4 | F6: 67.8 | G6: 36.2 | H6: 5.1 | I6: 2
A7: 476 | B7: 104.9 | C7: 90.6 | D7: 12.6 | E7: 1 | F7: 123.2 | G7: 89.4 | H7: 11.3 | I7: 8.2
A8: 485 | B8: 130 | C8: 122.9 | D8: 3 | E8: 3.6 | F8: 148.2 | G8: 124.8 | H8: 2.9 | I8: 29.1
A9: 494 | B9: 153.9 | C9: 148.5 | D9: 34.6 | E9: 10.4 | F9: 182.8 | G9: 167.2 | H9: 36.2 | I9: 88.5
A10: 503 | B10: 185.2 | C10: 175.2 | D10: 177.8 | E10: 16.1 | F10: 205.7 | G10: 191.3 | H10: 189.9 | I10: 154.8
A11: 512 | B11: 183.8 | C11: 180.7 | D11: 168 | E11: 2.6 | F11: 199.4 | G11: 193.3 | H11: 183.7 | I11: 25.6
A12: 521 | B12: 151.3 | C12: 157.3 | D12: 160.2 | E12: 6.7 | F12: 176.5 | G12: 183 | H12: 172.8 | I12: 32.8
A13: 530 | B13: 116.8 | C13: 126.7 | D13: 162.8 | E13: 52.9 | F13: 148.1 | G13: 164.8 | H13: 170.7 | I13: 204.3
A14: 539 | B14: 97.9 | C14: 106.8 | D14: 159.8 | E14: 99.7 | F14: 123 | G14: 142.3 | H14: 162.4 | I14: 224.1
A15: 548 | B15: 85.3 | C15: 93.3 | D15: 144.2 | E15: 156.9 | F15: 100.9 | G15: 119.3 | H15: 137 | I15: 224.8
A16: 556 | B16: 64 | C16: 72.4 | D16: 115.5 | E16: 188.7 | F16: 73.9 | G16: 90.8 | H16: 100.5 | I16: 192.3
A17: 565 | B17: 46 | C17: 53.5 | D17: 94.3 | E17: 190.3 | F17: 54.9 | G17: 70.1 | H17: 76.7 | I17: 151.3
A18: 574 | B18: 34.2 | C18: 41.6 | D18: 80.9 | E18: 181.1 | F18: 42.6 | G18: 57 | H18: 63.8 | I18: 121
A19: 583 | B19: 25.5 | C19: 31.2 | D19: 66.5 | E19: 158.7 | F19: 31.5 | G19: 43.2 | H19: 50.9 | I19: 92.6
A20: 592 | B20: 19.3 | C20: 23.9 | D20: 54.2 | E20: 146.3 | F20: 23.3 | G20: 32.7 | H20: 39.1 | I20: 74.7
A21: 601 | B21: 14.9 | C21: 18.7 | D21: 44.3 | E21: 136.3 | F21: 17.5 | G21: 24.7 | H21: 29.5 | I21: 60.1
A22: 610 | B22: 10.6 | C22: 13.7 | D22: 34.6 | E22: 121.4 | F22: 12.7 | G22: 18.3 | H22: 21.2 | I22: 45.6
A23: 619 | B23: 7.5 | C23: 9.6 | D23: 26.4 | E23: 98.6 | F23: 8.9 | G23: 13 | H23: 15.3 | I23: 32.4
A24: 628 | B24: 5.1 | C24: 6.8 | D24: 20 | E24: 77.8 | F24: 6.3 | G24: 9.4 | H24: 11.2 | I24: 23.3
A25: 637 | B25: 3.7 | C25: 5 | D25: 15.2 | E25: 60.7 | F25: 4.7 | G25: 7 | H25: 8.5 | I25: 17.1
A26: 646 | B26: 2.4 | C26: 3.2 | D26: 11 | E26: 45.8 | F26: 2.9 | G26: 4.5 | H26: 5.7 | I26: 11.9
A27: 654 | B27: 1.6 | C27: 2.2 | D27: 8.3 | E27: 36.4 | F27: 1.9 | G27: 3 | H27: 3.9 | I27: 8.6
A28: 663 | B28: 1.2 | C28: 1.7 | D28: 6.6 | E28: 30.4 | F28: 1.5 | G28: 2.3 | H28: 2.9 | I28: 6.7
A29: 672 | B29: 0.8 | C29: 1.1 | D29: 4.8 | E29: 24.3 | F29: 0.9 | G29: 1.3 | H29: 1.7 | I29: 4.6
A30: 681 | B30: 0.6 | C30: 0.8 | D30: 3.5 | E30: 18.6 | F30: 0.7 | G30: 1 | H30: 1.2 | I30: 3.3
A31: 690 | B31: 0.4 | C31: 0.5 | D31: 2.3 | E31: 12.4 | F31: 0.4 | G31: 0.6 | H31: 0.8 | I31: 2

Sheet normalized
A1: Emission [nm] | B1: yellow 405 ex | C1: yellow 440 ex | D1: yellow 488 ex | E1: yellow 514 ex | F1: green 405 | G1: green 440 | H1: green 488 ex | I1: green 514
A2: 432 | B2: ='spectra of Plexi'!B2/MAX('spectra of Plexi'!B:B) -> 0.0005399568035 | C2: ='spectra of Plexi'!C2/MAX('spectra of Plexi'!C:C) -> 0 | D2: ='spectra of Plexi'!D2/MAX('spectra of Plexi'!D:D) -> 0 | E2: ='spectra of Plexi'!E2/MAX('spectra of Plexi'!E:E) -> 0 | F2: ='spectra of Plexi'!F2/MAX('spectra of Plexi'!F:F) -> 0.0009722897423 | G2: ='spectra of Plexi'!G2/MAX('spectra of Plexi'!G:G) -> 0 | H2: ='spectra of Plexi'!H2/MAX('spectra of Plexi'!H:H) -> 0 | I2: ='spectra of Plexi'!I2/MAX('spectra of Plexi'!I:I) -> 0
A3: 441 | B3: ='spectra of Plexi'!B3/MAX('spectra of Plexi'!B:B) -> 0.00161987041 | C3: ='spectra of Plexi'!C3/MAX('spectra of Plexi'!C:C) -> 0 | D3: ='spectra of Plexi'!D3/MAX('spectra of Plexi'!D:D) -> 0 | E3: ='spectra of Plexi'!E3/MAX('spectra of Plexi'!E:E) -> 0 | F3: ='spectra of Plexi'!F3/MAX('spectra of Plexi'!F:F) -> 0.002430724356 | G3: ='spectra of Plexi'!G3/MAX('spectra of Plexi'!G:G) -> 0 | H3: ='spectra of Plexi'!H3/MAX('spectra of Plexi'!H:H) -> 0 | I3: ='spectra of Plexi'!I3/MAX('spectra of Plexi'!I:I) -> 0
A4: 450 | B4: ='spectra of Plexi'!B4/MAX('spectra of Plexi'!B:B) -> 0.01349892009 | C4: ='spectra of Plexi'!C4/MAX('spectra of Plexi'!C:C) -> 0.0005534034311 | D4: ='spectra of Plexi'!D4/MAX('spectra of Plexi'!D:D) -> 0.0005624296963 | E4: ='spectra of Plexi'!E4/MAX('spectra of Plexi'!E:E) -> 0 | F4: ='spectra of Plexi'!F4/MAX('spectra of Plexi'!F:F) -> 0.01895964998 | G4: ='spectra of Plexi'!G4/MAX('spectra of Plexi'!G:G) -> 0.0005173305742 | H4: ='spectra of Plexi'!H4/MAX('spectra of Plexi'!H:H) -> 0.0005265929437 | I4: ='spectra of Plexi'!I4/MAX('spectra of Plexi'!I:I) -> 0
A5: 459 | B5: ='spectra of Plexi'!B5/MAX('spectra of Plexi'!B:B) -> 0.07235421166 | C5: ='spectra of Plexi'!C5/MAX('spectra of Plexi'!C:C) -> 0.01494189264 | D5: ='spectra of Plexi'!D5/MAX('spectra of Plexi'!D:D) -> 0.003937007874 | E5: ='spectra of Plexi'!E5/MAX('spectra of Plexi'!E:E) -> 0 | F5: ='spectra of Plexi'!F5/MAX('spectra of Plexi'!F:F) -> 0.09674282936 | G5: ='spectra of Plexi'!G5/MAX('spectra of Plexi'!G:G) -> 0.01551991723 | H5: ='spectra of Plexi'!H5/MAX('spectra of Plexi'!H:H) -> 0.003686150606 | I5: ='spectra of Plexi'!I5/MAX('spectra of Plexi'!I:I) -> 0.0004448398577
A6: 467 | B6: ='spectra of Plexi'!B6/MAX('spectra of Plexi'!B:B) -> 0.2570194384 | C6: ='spectra of Plexi'!C6/MAX('spectra of Plexi'!C:C) -> 0.1759822911 | D6: ='spectra of Plexi'!D6/MAX('spectra of Plexi'!D:D) -> 0.02755905512 | E6: ='spectra of Plexi'!E6/MAX('spectra of Plexi'!E:E) -> 0.002101944298 | F6: ='spectra of Plexi'!F6/MAX('spectra of Plexi'!F:F) -> 0.3296062227 | G6: ='spectra of Plexi'!G6/MAX('spectra of Plexi'!G:G) -> 0.1872736679 | H6: ='spectra of Plexi'!H6/MAX('spectra of Plexi'!H:H) -> 0.02685624013 | I6: ='spectra of Plexi'!I6/MAX('spectra of Plexi'!I:I) -> 0.008896797153
A7: 476 | B7: ='spectra of Plexi'!B7/MAX('spectra of Plexi'!B:B) -> 0.5664146868 | C7: ='spectra of Plexi'!C7/MAX('spectra of Plexi'!C:C) -> 0.5013835086 | D7: ='spectra of Plexi'!D7/MAX('spectra of Plexi'!D:D) -> 0.07086614173 | E7: ='spectra of Plexi'!E7/MAX('spectra of Plexi'!E:E) -> 0.005254860746 | F7: ='spectra of Plexi'!F7/MAX('spectra of Plexi'!F:F) -> 0.5989304813 | G7: ='spectra of Plexi'!G7/MAX('spectra of Plexi'!G:G) -> 0.4624935334 | H7: ='spectra of Plexi'!H7/MAX('spectra of Plexi'!H:H) -> 0.05950500263 | I7: ='spectra of Plexi'!I7/MAX('spectra of Plexi'!I:I) -> 0.03647686833
A8: 485 | B8: ='spectra of Plexi'!B8/MAX('spectra of Plexi'!B:B) -> 0.7019438445 | C8: ='spectra of Plexi'!C8/MAX('spectra of Plexi'!C:C) -> 0.6801328168 | D8: ='spectra of Plexi'!D8/MAX('spectra of Plexi'!D:D) -> 0.01687289089 | E8: ='spectra of Plexi'!E8/MAX('spectra of Plexi'!E:E) -> 0.01891749869 | F8: ='spectra of Plexi'!F8/MAX('spectra of Plexi'!F:F) -> 0.7204666991 | G8: ='spectra of Plexi'!G8/MAX('spectra of Plexi'!G:G) -> 0.6456285566 | H8: ='spectra of Plexi'!H8/MAX('spectra of Plexi'!H:H) -> 0.01527119537 | I8: ='spectra of Plexi'!I8/MAX('spectra of Plexi'!I:I) -> 0.1294483986
A9: 494 | B9: ='spectra of Plexi'!B9/MAX('spectra of Plexi'!B:B) -> 0.8309935205 | C9: ='spectra of Plexi'!C9/MAX('spectra of Plexi'!C:C) -> 0.8218040952 | D9: ='spectra of Plexi'!D9/MAX('spectra of Plexi'!D:D) -> 0.1946006749 | E9: ='spectra of Plexi'!E9/MAX('spectra of Plexi'!E:E) -> 0.05465055176 | F9: ='spectra of Plexi'!F9/MAX('spectra of Plexi'!F:F) -> 0.8886728245 | G9: ='spectra of Plexi'!G9/MAX('spectra of Plexi'!G:G) -> 0.8649767201 | H9: ='spectra of Plexi'!H9/MAX('spectra of Plexi'!H:H) -> 0.1906266456 | I9: ='spectra of Plexi'!I9/MAX('spectra of Plexi'!I:I) -> 0.393683274
A10: 503 | B10: ='spectra of Plexi'!B10/MAX('spectra of Plexi'!B:B) -> 1 | C10: ='spectra of Plexi'!C10/MAX('spectra of Plexi'!C:C) -> 0.9695628113 | D10: ='spectra of Plexi'!D10/MAX('spectra of Plexi'!D:D) -> 1 | E10: ='spectra of Plexi'!E10/MAX('spectra of Plexi'!E:E) -> 0.08460325801 | F10: ='spectra of Plexi'!F10/MAX('spectra of Plexi'!F:F) -> 1 | G10: ='spectra of Plexi'!G10/MAX('spectra of Plexi'!G:G) -> 0.9896533885 | H10: ='spectra of Plexi'!H10/MAX('spectra of Plexi'!H:H) -> 1 | I10: ='spectra of Plexi'!I10/MAX('spectra of Plexi'!I:I) -> 0.6886120996
A11: 512 | B11: ='spectra of Plexi'!B11/MAX('spectra of Plexi'!B:B) -> 0.9924406048 | C11: ='spectra of Plexi'!C11/MAX('spectra of Plexi'!C:C) -> 1 | D11: ='spectra of Plexi'!D11/MAX('spectra of Plexi'!D:D) -> 0.9448818898 | E11: ='spectra of Plexi'!E11/MAX('spectra of Plexi'!E:E) -> 0.01366263794 | F11: ='spectra of Plexi'!F11/MAX('spectra of Plexi'!F:F) -> 0.9693728731 | G11: ='spectra of Plexi'!G11/MAX('spectra of Plexi'!G:G) -> 1 | H11: ='spectra of Plexi'!H11/MAX('spectra of Plexi'!H:H) -> 0.9673512375 | I11: ='spectra of Plexi'!I11/MAX('spectra of Plexi'!I:I) -> 0.1138790036
A12: 521 | B12: ='spectra of Plexi'!B12/MAX('spectra of Plexi'!B:B) -> 0.8169546436 | C12: ='spectra of Plexi'!C12/MAX('spectra of Plexi'!C:C) -> 0.8705035971 | D12: ='spectra of Plexi'!D12/MAX('spectra of Plexi'!D:D) -> 0.9010123735 | E12: ='spectra of Plexi'!E12/MAX('spectra of Plexi'!E:E) -> 0.035207567 | F12: ='spectra of Plexi'!F12/MAX('spectra of Plexi'!F:F) -> 0.8580456976 | G12: ='spectra of Plexi'!G12/MAX('spectra of Plexi'!G:G) -> 0.9467149509 | H12: ='spectra of Plexi'!H12/MAX('spectra of Plexi'!H:H) -> 0.9099526066 | I12: ='spectra of Plexi'!I12/MAX('spectra of Plexi'!I:I) -> 0.1459074733
A13: 530 | B13: ='spectra of Plexi'!B13/MAX('spectra of Plexi'!B:B) -> 0.6306695464 | C13: ='spectra of Plexi'!C13/MAX('spectra of Plexi'!C:C) -> 0.7011621472 | D13: ='spectra of Plexi'!D13/MAX('spectra of Plexi'!D:D) -> 0.9156355456 | E13: ='spectra of Plexi'!E13/MAX('spectra of Plexi'!E:E) -> 0.2779821335 | F13: ='spectra of Plexi'!F13/MAX('spectra of Plexi'!F:F) -> 0.7199805542 | G13: ='spectra of Plexi'!G13/MAX('spectra of Plexi'!G:G) -> 0.8525607863 | H13: ='spectra of Plexi'!H13/MAX('spectra of Plexi'!H:H) -> 0.8988941548 | I13: ='spectra of Plexi'!I13/MAX('spectra of Plexi'!I:I) -> 0.9088078292
A14: 539 | B14: ='spectra of Plexi'!B14/MAX('spectra of Plexi'!B:B) -> 0.5286177106 | C14: ='spectra of Plexi'!C14/MAX('spectra of Plexi'!C:C) -> 0.5910348644 | D14: ='spectra of Plexi'!D14/MAX('spectra of Plexi'!D:D) -> 0.8987626547 | E14: ='spectra of Plexi'!E14/MAX('spectra of Plexi'!E:E) -> 0.5239096164 | F14: ='spectra of Plexi'!F14/MAX('spectra of Plexi'!F:F) -> 0.5979581915 | G14: ='spectra of Plexi'!G14/MAX('spectra of Plexi'!G:G) -> 0.7361614071 | H14: ='spectra of Plexi'!H14/MAX('spectra of Plexi'!H:H) -> 0.8551869405 | I14: ='spectra of Plexi'!I14/MAX('spectra of Plexi'!I:I) -> 0.996886121
A15: 548 | B15: ='spectra of Plexi'!B15/MAX('spectra of Plexi'!B:B) -> 0.4605831533 | C15: ='spectra of Plexi'!C15/MAX('spectra of Plexi'!C:C) -> 0.5163254012 | D15: ='spectra of Plexi'!D15/MAX('spectra of Plexi'!D:D) -> 0.811023622 | E15: ='spectra of Plexi'!E15/MAX('spectra of Plexi'!E:E) -> 0.8244876511 | F15: ='spectra of Plexi'!F15/MAX('spectra of Plexi'!F:F) -> 0.490520175 | G15: ='spectra of Plexi'!G15/MAX('spectra of Plexi'!G:G) -> 0.6171753751 | H15: ='spectra of Plexi'!H15/MAX('spectra of Plexi'!H:H) -> 0.7214323328 | I15: ='spectra of Plexi'!I15/MAX('spectra of Plexi'!I:I) -> 1
A16: 556 | B16: ='spectra of Plexi'!B16/MAX('spectra of Plexi'!B:B) -> 0.3455723542 | C16: ='spectra of Plexi'!C16/MAX('spectra of Plexi'!C:C) -> 0.4006640841 | D16: ='spectra of Plexi'!D16/MAX('spectra of Plexi'!D:D) -> 0.6496062992 | E16: ='spectra of Plexi'!E16/MAX('spectra of Plexi'!E:E) -> 0.9915922228 | F16: ='spectra of Plexi'!F16/MAX('spectra of Plexi'!F:F) -> 0.3592610598 | G16: ='spectra of Plexi'!G16/MAX('spectra of Plexi'!G:G) -> 0.4697361614 | H16: ='spectra of Plexi'!H16/MAX('spectra of Plexi'!H:H) -> 0.5292259084 | I16: ='spectra of Plexi'!I16/MAX('spectra of Plexi'!I:I) -> 0.8554270463
A17: 565 | B17: ='spectra of Plexi'!B17/MAX('spectra of Plexi'!B:B) -> 0.2483801296 | C17: ='spectra of Plexi'!C17/MAX('spectra of Plexi'!C:C) -> 0.2960708356 | D17: ='spectra of Plexi'!D17/MAX('spectra of Plexi'!D:D) -> 0.5303712036 | E17: ='spectra of Plexi'!E17/MAX('spectra of Plexi'!E:E) -> 1 | F17: ='spectra of Plexi'!F17/MAX('spectra of Plexi'!F:F) -> 0.2668935343 | G17: ='spectra of Plexi'!G17/MAX('spectra of Plexi'!G:G) -> 0.3626487325 | H17: ='spectra of Plexi'!H17/MAX('spectra of Plexi'!H:H) -> 0.4038967878 | I17: ='spectra of Plexi'!I17/MAX('spectra of Plexi'!I:I) -> 0.6730427046
A18: 574 | B18: ='spectra of Plexi'!B18/MAX('spectra of Plexi'!B:B) -> 0.1846652268 | C18: ='spectra of Plexi'!C18/MAX('spectra of Plexi'!C:C) -> 0.2302158273 | D18: ='spectra of Plexi'!D18/MAX('spectra of Plexi'!D:D) -> 0.4550056243 | E18: ='spectra of Plexi'!E18/MAX('spectra of Plexi'!E:E) -> 0.9516552811 | F18: ='spectra of Plexi'!F18/MAX('spectra of Plexi'!F:F) -> 0.2070977151 | G18: ='spectra of Plexi'!G18/MAX('spectra of Plexi'!G:G) -> 0.2948784273 | H18: ='spectra of Plexi'!H18/MAX('spectra of Plexi'!H:H) -> 0.3359662981 | I18: ='spectra of Plexi'!I18/MAX('spectra of Plexi'!I:I) -> 0.5382562278
A19: 583 | B19: ='spectra of Plexi'!B19/MAX('spectra of Plexi'!B:B) -> 0.1376889849 | C19: ='spectra of Plexi'!C19/MAX('spectra of Plexi'!C:C) -> 0.1726618705 | D19: ='spectra of Plexi'!D19/MAX('spectra of Plexi'!D:D) -> 0.374015748 | E19: ='spectra of Plexi'!E19/MAX('spectra of Plexi'!E:E) -> 0.8339464004 | F19: ='spectra of Plexi'!F19/MAX('spectra of Plexi'!F:F) -> 0.1531356344 | G19: ='spectra of Plexi'!G19/MAX('spectra of Plexi'!G:G) -> 0.2234868081 | H19: ='spectra of Plexi'!H19/MAX('spectra of Plexi'!H:H) -> 0.2680358083 | I19: ='spectra of Plexi'!I19/MAX('spectra of Plexi'!I:I) -> 0.4119217082
A20: 592 | B20: ='spectra of Plexi'!B20/MAX('spectra of Plexi'!B:B) -> 0.1042116631 | C20: ='spectra of Plexi'!C20/MAX('spectra of Plexi'!C:C) -> 0.13226342 | D20: ='spectra of Plexi'!D20/MAX('spectra of Plexi'!D:D) -> 0.3048368954 | E20: ='spectra of Plexi'!E20/MAX('spectra of Plexi'!E:E) -> 0.7687861272 | F20: ='spectra of Plexi'!F20/MAX('spectra of Plexi'!F:F) -> 0.113271755 | G20: ='spectra of Plexi'!G20/MAX('spectra of Plexi'!G:G) -> 0.1691670978 | H20: ='spectra of Plexi'!H20/MAX('spectra of Plexi'!H:H) -> 0.205897841 | I20: ='spectra of Plexi'!I20/MAX('spectra of Plexi'!I:I) -> 0.3322953737
A21: 601 | B21: ='spectra of Plexi'!B21/MAX('spectra of Plexi'!B:B) -> 0.08045356371 | C21: ='spectra of Plexi'!C21/MAX('spectra of Plexi'!C:C) -> 0.1034864416 | D21: ='spectra of Plexi'!D21/MAX('spectra of Plexi'!D:D) -> 0.2491563555 | E21: ='spectra of Plexi'!E21/MAX('spectra of Plexi'!E:E) -> 0.7162375197 | F21: ='spectra of Plexi'!F21/MAX('spectra of Plexi'!F:F) -> 0.08507535246 | G21: ='spectra of Plexi'!G21/MAX('spectra of Plexi'!G:G) -> 0.1277806518 | H21: ='spectra of Plexi'!H21/MAX('spectra of Plexi'!H:H) -> 0.1553449184 | I21: ='spectra of Plexi'!I21/MAX('spectra of Plexi'!I:I) -> 0.2673487544
A22: 610 | B22: ='spectra of Plexi'!B22/MAX('spectra of Plexi'!B:B) -> 0.05723542117 | C22: ='spectra of Plexi'!C22/MAX('spectra of Plexi'!C:C) -> 0.07581627006 | D22: ='spectra of Plexi'!D22/MAX('spectra of Plexi'!D:D) -> 0.1946006749 | E22: ='spectra of Plexi'!E22/MAX('spectra of Plexi'!E:E) -> 0.6379400946 | F22: ='spectra of Plexi'!F22/MAX('spectra of Plexi'!F:F) -> 0.06174039864 | G22: ='spectra of Plexi'!G22/MAX('spectra of Plexi'!G:G) -> 0.09467149509 | H22: ='spectra of Plexi'!H22/MAX('spectra of Plexi'!H:H) -> 0.1116377041 | I22: ='spectra of Plexi'!I22/MAX('spectra of Plexi'!I:I) -> 0.2028469751
A23: 619 | B23: ='spectra of Plexi'!B23/MAX('spectra of Plexi'!B:B) -> 0.04049676026 | C23: ='spectra of Plexi'!C23/MAX('spectra of Plexi'!C:C) -> 0.05312672939 | D23: ='spectra of Plexi'!D23/MAX('spectra of Plexi'!D:D) -> 0.1484814398 | E23: ='spectra of Plexi'!E23/MAX('spectra of Plexi'!E:E) -> 0.5181292696 | F23: ='spectra of Plexi'!F23/MAX('spectra of Plexi'!F:F) -> 0.04326689353 | G23: ='spectra of Plexi'!G23/MAX('spectra of Plexi'!G:G) -> 0.06725297465 | H23: ='spectra of Plexi'!H23/MAX('spectra of Plexi'!H:H) -> 0.08056872038 | I23: ='spectra of Plexi'!I23/MAX('spectra of Plexi'!I:I) -> 0.1441281139
A24: 628 | B24: ='spectra of Plexi'!B24/MAX('spectra of Plexi'!B:B) -> 0.02753779698 | C24: ='spectra of Plexi'!C24/MAX('spectra of Plexi'!C:C) -> 0.03763143331 | D24: ='spectra of Plexi'!D24/MAX('spectra of Plexi'!D:D) -> 0.1124859393 | E24: ='spectra of Plexi'!E24/MAX('spectra of Plexi'!E:E) -> 0.4088281661 | F24: ='spectra of Plexi'!F24/MAX('spectra of Plexi'!F:F) -> 0.03062712688 | G24: ='spectra of Plexi'!G24/MAX('spectra of Plexi'!G:G) -> 0.04862907398 | H24: ='spectra of Plexi'!H24/MAX('spectra of Plexi'!H:H) -> 0.05897840969 | I24: ='spectra of Plexi'!I24/MAX('spectra of Plexi'!I:I) -> 0.1036476868
A25: 637 | B25: ='spectra of Plexi'!B25/MAX('spectra of Plexi'!B:B) -> 0.01997840173 | C25: ='spectra of Plexi'!C25/MAX('spectra of Plexi'!C:C) -> 0.02767017156 | D25: ='spectra of Plexi'!D25/MAX('spectra of Plexi'!D:D) -> 0.08548931384 | E25: ='spectra of Plexi'!E25/MAX('spectra of Plexi'!E:E) -> 0.3189700473 | F25: ='spectra of Plexi'!F25/MAX('spectra of Plexi'!F:F) -> 0.02284880895 | G25: ='spectra of Plexi'!G25/MAX('spectra of Plexi'!G:G) -> 0.0362131402 | H25: ='spectra of Plexi'!H25/MAX('spectra of Plexi'!H:H) -> 0.04476040021 | I25: ='spectra of Plexi'!I25/MAX('spectra of Plexi'!I:I) -> 0.07606761566
A26: 646 | B26: ='spectra of Plexi'!B26/MAX('spectra of Plexi'!B:B) -> 0.01295896328 | C26: ='spectra of Plexi'!C26/MAX('spectra of Plexi'!C:C) -> 0.0177089098 | D26: ='spectra of Plexi'!D26/MAX('spectra of Plexi'!D:D) -> 0.06186726659 | E26: ='spectra of Plexi'!E26/MAX('spectra of Plexi'!E:E) -> 0.2406726222 | F26: ='spectra of Plexi'!F26/MAX('spectra of Plexi'!F:F) -> 0.01409820126 | G26: ='spectra of Plexi'!G26/MAX('spectra of Plexi'!G:G) -> 0.02327987584 | H26: ='spectra of Plexi'!H26/MAX('spectra of Plexi'!H:H) -> 0.03001579779 | I26: ='spectra of Plexi'!I26/MAX('spectra of Plexi'!I:I) -> 0.05293594306
A27: 654 | B27: ='spectra of Plexi'!B27/MAX('spectra of Plexi'!B:B) -> 0.008639308855 | C27: ='spectra of Plexi'!C27/MAX('spectra of Plexi'!C:C) -> 0.01217487548 | D27: ='spectra of Plexi'!D27/MAX('spectra of Plexi'!D:D) -> 0.04668166479 | E27: ='spectra of Plexi'!E27/MAX('spectra of Plexi'!E:E) -> 0.1912769312 | F27: ='spectra of Plexi'!F27/MAX('spectra of Plexi'!F:F) -> 0.009236752552 | G27: ='spectra of Plexi'!G27/MAX('spectra of Plexi'!G:G) -> 0.01551991723 | H27: ='spectra of Plexi'!H27/MAX('spectra of Plexi'!H:H) -> 0.0205371248 | I27: ='spectra of Plexi'!I27/MAX('spectra of Plexi'!I:I) -> 0.03825622776
A28: 663 | B28: ='spectra of Plexi'!B28/MAX('spectra of Plexi'!B:B) -> 0.006479481641 | C28: ='spectra of Plexi'!C28/MAX('spectra of Plexi'!C:C) -> 0.009407858329 | D28: ='spectra of Plexi'!D28/MAX('spectra of Plexi'!D:D) -> 0.03712035996 | E28: ='spectra of Plexi'!E28/MAX('spectra of Plexi'!E:E) -> 0.1597477667 | F28: ='spectra of Plexi'!F28/MAX('spectra of Plexi'!F:F) -> 0.007292173068 | G28: ='spectra of Plexi'!G28/MAX('spectra of Plexi'!G:G) -> 0.01189860321 | H28: ='spectra of Plexi'!H28/MAX('spectra of Plexi'!H:H) -> 0.01527119537 | I28: ='spectra of Plexi'!I28/MAX('spectra of Plexi'!I:I) -> 0.02980427046
A29: 672 | B29: ='spectra of Plexi'!B29/MAX('spectra of Plexi'!B:B) -> 0.004319654428 | C29: ='spectra of Plexi'!C29/MAX('spectra of Plexi'!C:C) -> 0.006087437742 | D29: ='spectra of Plexi'!D29/MAX('spectra of Plexi'!D:D) -> 0.02699662542 | E29: ='spectra of Plexi'!E29/MAX('spectra of Plexi'!E:E) -> 0.1276931161 | F29: ='spectra of Plexi'!F29/MAX('spectra of Plexi'!F:F) -> 0.004375303841 | G29: ='spectra of Plexi'!G29/MAX('spectra of Plexi'!G:G) -> 0.006725297465 | H29: ='spectra of Plexi'!H29/MAX('spectra of Plexi'!H:H) -> 0.008952080042 | I29: ='spectra of Plexi'!I29/MAX('spectra of Plexi'!I:I) -> 0.02046263345
A30: 681 | B30: ='spectra of Plexi'!B30/MAX('spectra of Plexi'!B:B) -> 0.003239740821 | C30: ='spectra of Plexi'!C30/MAX('spectra of Plexi'!C:C) -> 0.004427227449 | D30: ='spectra of Plexi'!D30/MAX('spectra of Plexi'!D:D) -> 0.01968503937 | E30: ='spectra of Plexi'!E30/MAX('spectra of Plexi'!E:E) -> 0.09774040988 | F30: ='spectra of Plexi'!F30/MAX('spectra of Plexi'!F:F) -> 0.003403014098 | G30: ='spectra of Plexi'!G30/MAX('spectra of Plexi'!G:G) -> 0.005173305742 | H30: ='spectra of Plexi'!H30/MAX('spectra of Plexi'!H:H) -> 0.006319115324 | I30: ='spectra of Plexi'!I30/MAX('spectra of Plexi'!I:I) -> 0.0146797153
A31: 690 | B31: ='spectra of Plexi'!B31/MAX('spectra of Plexi'!B:B) -> 0.002159827214 | C31: ='spectra of Plexi'!C31/MAX('spectra of Plexi'!C:C) -> 0.002767017156 | D31: ='spectra of Plexi'!D31/MAX('spectra of Plexi'!D:D) -> 0.01293588301 | E31: ='spectra of Plexi'!E31/MAX('spectra of Plexi'!E:E) -> 0.06516027325 | F31: ='spectra of Plexi'!F31/MAX('spectra of Plexi'!F:F) -> 0.001944579485 | G31: ='spectra of Plexi'!G31/MAX('spectra of Plexi'!G:G) -> 0.003103983445 | H31: ='spectra of Plexi'!H31/MAX('spectra of Plexi'!H:H) -> 0.004212743549 | I31: ='spectra of Plexi'!I31/MAX('spectra of Plexi'!I:I) -> 0.008896797153
